bitfinex/quotes_ETHUSD_20240618
["timestamp","ask_amount","ask_price","bid_price","bid_amount"]
[1718749336759,2.87313,3480.6,3479.8,3.0]
[1718749336914,2.87327,3480.4,3479.7,5.87378]
[1718749337110,2.87341,3480.2,3479.7,3.0]
[1718749337418,2.3918,3480.3,3479.6,3.0]
[1718749337619,2.3918,3480.3,3479.6,7.60188]
[1718749337848,2.3918,3480.3,3479.9,4.60156]
[1718749338047,2.3057,3480.7,3480.0,2.87349]
[1718749338219,2.3057,3480.7,3480.1,1.728]
[1718749338623,2.3057,3480.7,3479.9,2.87364]
[1718749338832,2.87306,3480.6,3479.9,1.728]
[1718749339348,2.87306,3480.6,3479.9,4.60162]
[1718749339524,5.17869,3480.7,3479.9,4.60162]
[1718749340227,5.17869,3480.7,3480.1,1.728]
[1718749340628,3.51854256,3480.7,3479.9,2.87363]
[1718749340851,2.3057,3480.7,3480.1,4.60141]
[1718749341059,2.3057,3480.7,3480.2,2.87337]
[1718749341516,2.3057,3480.7,3480.1,4.60146]
[1718749341713,2.3057,3480.7,3479.5,0.91079924]
[1718749341714,2.3057,3480.7,3479.6,2.87388]
[1718749341919,2.87325,3480.4,3479.7,5.87378]
[1718749342553,2.87315,3480.5,3479.8,2.87371]
[1718749342755,2.3057,3480.7,3479.9,1.728]
[1718749342927,5.17869,3480.7,3480.0,1.728]
[1718749344165,2.2941,3480.6,3479.7,4.728]
[1718749344312,2.87323,3480.4,3479.7,7.6018]
[1718749344743,5.1672,3480.6,3479.7,7.60174]
[1718749345249,5.1672,3480.6,3479.8,2.8737]
[1718749345455,2.87316,3480.5,3479.8,2.8737]
[1718749345634,6.258503,3480.6,3479.7,7.60181]
[1718749346356,2.87324,3480.4,3479.7,7.60181]
[1718749346523,6.258503,3480.6,3480.2,2.87339]
[1718749346524,2.2941,3480.6,3480.2,2.87339]
[1718749346859,2.2941,3480.6,3480.2,3.333529]
[1718749347160,5.14552,3480.9,3480.2,3.333529]
[1718749347333,5.14552,3480.9,3480.2,2.87339]
[1718749347535,2.2727,3480.9,3480.3,2.87331]
[1718749348468,2.2727,3480.9,3480.2,2.87338]
[1718749349427,5.14553,3480.9,3480.2,2.87338]
[1718749349797,2.2727,3480.9,3480.3,1.728]
[1718749350091,5.26908,3481.2,3480.5,2.87312]
[1718749351346,2.3965,3481.2,3480.7,2.87297]
[1718749351551,2.3965,3481.2,3480.6,2.87305]
[1718749352166,2.3965,3481.2,3480.7,2.87292]
[1718749352357,2.3965,3481.2,3480.8,2.87287]
[1718749352557,2.3965,3481.2,3480.9,2.87279]
[1718749353074,2.3965,3481.2,3480.8,2.87288]
[1718749356201,2.3965,3481.2,3480.7,2.87297]
[1718749358880,2.3965,3481.2,3480.8,2.87289]
[1718749359410,2.3965,3481.2,3481.0,2.87265]
[1718749359900,2.3965,3481.2,3481.1,2.87265]
[1718749362563,1.20414563,3481.4,3481.1,2.87265]
[1718749363986,1.20414563,3481.4,3480.6,1.728]
[1718749363987,4.5519207,3481.3,3480.6,1.728]
[1718749364220,4.5519207,3481.3,3480.7,2.87292]
[1718749364221,1.77975226,3481.2,3480.7,2.87292]
[1718749364374,1.20414563,3481.1,3480.7,2.87292]
[1718749364771,1.20414563,3481.1,3480.4,2.87319]
[1718749365091,0.57560663,3481.2,3480.5,3.0]
[1718749365092,3.66794563,3481.0,3480.5,3.0]
[1718749365276,1.20414563,3480.9,3480.2,4.60133]
[1718749365474,1.20414563,3480.9,3480.3,5.87329]
[1718749365812,2.87283,3480.9,3480.4,3.0]
[1718749366014,1.20414563,3480.8,3480.1,1.728]
[1718749366312,2.333,3480.7,3480.1,1.728]
[1718749366476,1.20414563,3480.6,3480.1,1.728]
[1718749370120,1.20414563,3480.5,3480.1,1.728]
[1718749370418,1.20414563,3480.6,3480.1,4.60145]
[1718749371919,1.20414563,3480.6,3480.0,3.0]
[1718749371920,1.20414563,3480.4,3480.0,3.0]
[1718749372101,1.20414563,3480.4,3479.5,4.728]
[1718749372306,1.20414563,3480.3,3479.5,4.728]
[1718749372486,6.55124563,3480.2,3479.5,4.60196]
[1718749372686,6.55124563,3480.2,3479.6,4.728]
[1718749373017,7.64396828,3480.2,3479.6,4.728]
[1718749373391,4.77056828,3480.2,3479.6,4.728]
[1718749373594,4.77056828,3480.2,3479.7,3.0]
[1718749373994,4.77056828,3480.2,3479.5,4.60196]
[1718749373995,4.77056828,3480.2,3479.6,3.0]
[1718749374314,7.64398828,3480.2,3479.6,3.0]
[1718749374852,2.3684654,3480.1,3479.6,3.0]
[1718749375118,1.20414563,3479.9,3479.1,3.0]
[1718749375344,2.8739,3479.6,3478.9,2.87443]
[1718749375633,2.4737,3479.7,3478.9,2.87443]
[1718749375634,6.55166563,3479.7,3478.9,2.87443]
[1718749375788,6.55166563,3479.7,3479.0,1.728]
[1718749375991,6.55166563,3479.7,3479.0,4.60238]
[1718749375992,3.67784563,3479.7,3479.0,4.60238]
[1718749376207,3.67784563,3479.7,3479.1,2.8743]
[1718749376832,3.67784563,3479.7,3479.2,3.0]
[1718749377253,6.44030365,3479.7,3479.2,3.0]
[1718749377402,7.64444928,3479.7,3479.1,3.0]
[1718749377597,7.64444928,3479.7,3478.8,2.87454]
[1718749377598,2.2938,3479.3,3478.8,1.728]
[1718749377849,2.2938,3479.3,3478.8,4.728]
[1718749378432,2.2938,3479.3,3478.8,1.728]
[1718749380038,2.2938,3479.3,3478.8,4.728]
[1718749380939,3.23919746,3479.3,3478.8,3.0]
[1718749381130,2.87433,3479.1,3478.5,4.728]
[1718749382022,2.87441,3479.0,3478.5,4.728]
[1718749382206,2.87441,3479.0,3478.3,4.728]
[1718749383407,2.87441,3479.0,3478.3,7.60292]
[1718749383663,2.87438,3479.0,3478.3,4.728]
[1718749384163,5.19737,3478.9,3478.3,4.728]
[1718749384364,5.19737,3478.9,3477.9,2.022]
[1718749384365,5.19737,3478.9,3478.1,4.60311]
[1718749384667,5.19737,3478.9,3478.2,4.728]
[1718749384821,1.20414563,3479.3,3478.2,6.08523777]
[1718749385026,3.52704563,3479.7,3479.0,4.60237]
[1718749385221,3.52704563,3480.2,3479.4,1.728]
[1718749385463,2.3229,3480.2,3479.7,2.87379]
[1718749385671,2.3229,3480.2,3479.4,1.728]
[1718749385672,5.19632,3480.2,3479.4,1.728]
[1718749385827,2.3229,3480.2,3479.4,1.728]
[1718749386552,2.3229,3480.2,3479.4,4.60204]
[1718749386726,2.3229,3480.2,3479.5,5.87396]
[1718749387232,2.3229,3480.2,3479.5,3.0]
[1718749387459,2.87356,3480.0,3479.5,3.0]
[1718749387623,2.87356,3480.0,3479.4,4.728]
[1718749388176,2.87349,3480.1,3479.4,7.60204]
[1718749388325,2.3229,3480.2,3479.4,4.728]
[1718749388634,2.3229,3480.2,3479.6,2.87388]
[1718749389044,5.1963,3480.2,3479.6,2.87388]
[1718749389375,5.1963,3480.2,3479.4,1.728]
[1718749389662,1.07742106,3480.1,3479.4,1.728]
[1718749390335,3.95091106,3480.1,3479.4,1.728]
[1718749390539,2.87378,3479.8,3479.3,3.0]
[1718749390726,0.142,3479.4,3479.1,1.728]
[1718749390925,0.142,3479.4,3479.2,2.87416]
[1718749391165,0.142,3479.4,3479.2,2.87422]
[1718749392163,0.142,3479.4,3479.2,2.84622]
[1718749392943,0.142,3479.4,3479.1,4.60229]
[1718749393148,0.142,3479.4,3479.2,3.0]
[1718749395282,0.142,3479.4,3478.7,1.728]
[1718749395482,0.142,3479.4,3478.5,2.8748]
[1718749395483,0.691241,3479.4,3478.6,3.0]
[1718749395770,2.87415,3479.3,3478.6,5.8747]
[1718749395944,0.142,3479.4,3478.7,2.87463]
[1718749396153,0.142,3479.4,3478.8,3.0]
[1718749396366,0.142,3479.4,3478.8,1.728]
[1718749397138,0.142,3479.4,3479.1,2.87424]
[1718749397400,0.142,3479.4,3479.2,2.8742]
[1718749398092,0.142,3479.4,3479.3,10.35042]
[1718749409112,0.142,3479.4,3479.3,13.35042]
[1718749409271,0.142,3479.4,3479.3,16.22456]
[1718749409476,0.142,3479.4,3479.3,18.049216]
[1718749409678,0.142,3479.4,3479.3,20.923356]
[1718749409879,0.142,3479.4,3479.3,21.473356]
[1718749411018,1e-08,3479.4,3479.3,21.473356]
[1718749411308,2.3294,3480.6,3479.3,21.473356]
[1718749411309,2.3294,3480.6,3480.5,10.34745]
[1718749411690,3.50954563,3481.0,3480.9,5.74564]
[1718749411887,2.3054,3481.0,3480.9,5.74564]
[1718749412385,2.3054,3481.0,3480.9,2.87282]
[1718749413782,2.3054,3481.0,3480.8,2.87288]
[1718749415407,2.3054,3481.0,3480.9,2.87282]
[1718749415597,2.3054,3481.0,3480.8,2.87287]
[1718749415915,2.3054,3481.0,3480.7,4.60096]
[1718749416426,5.1782,3481.0,3480.3,2.87325]
[1718749416725,2.3054,3481.0,3480.5,2.87314]
[1718749417282,2.3054,3481.0,3480.6,2.873]
[1718749417635,2.3054,3481.0,3480.7,4.60097]
[1718749418086,2.3054,3481.0,3480.8,2.87283]
[1718749419114,2.3054,3481.0,3480.9,2.87282]
[1718749419920,2.3054,3481.0,3480.9,5.74564]
[1718749420919,2.4308,3481.5,3480.9,4.96731324]
[1718749421084,2.4308,3481.5,3481.4,2.8724]
[1718749423928,2.4308,3481.5,3481.2,4.60056]
[1718749423929,2.4308,3481.5,3481.3,2.87246]
[1718749424422,2.4308,3481.5,3481.2,4.6005]
[1718749424633,2.4308,3481.5,3481.3,2.87245]
[1718749424820,2.4308,3481.5,3481.2,2.87255]
[1718749425120,2.4308,3481.5,3481.1,2.87264]
[1718749425121,2.4308,3481.5,3481.0,2.87272]
[1718749425330,5.54622,3481.5,3480.7,2.87297]
[1718749425531,2.67388,3481.5,3480.8,3.0]
[1718749425693,2.67388,3481.5,3480.9,2.87281]
[1718749425891,2.67388,3481.5,3481.0,3.0]
[1718749426330,5.5462,3481.5,3481.0,3.0]
[1718749426693,3.714247,3481.4,3480.7,4.60096]
[1718749427099,3.714247,3481.4,3480.8,3.0]
[1718749427334,2.4061,3481.3,3480.8,5.87288]
[1718749427489,2.4061,3481.3,3480.8,3.0]
[1718749429034,2.4061,3481.3,3480.8,5.87286]
[1718749429920,2.4061,3481.3,3480.8,2.87286]
[1718749430801,2.2689,3481.7,3480.8,1.728]
[1718749431004,2.2689,3481.7,3481.2,2.8725]
[1718749431498,2.2689,3481.7,3481.3,2.87247]
[1718749431939,2.2689,3481.7,3481.2,4.6005]
[1718749432156,2.2689,3481.7,3481.5,2.87224]
[1718749432439,2.2689,3481.7,3480.9,0.460096]
[1718749432440,2.2689,3481.7,3481.6,5.74448]
[1718749432610,4.07573563,3482.4,3481.7,2.87212]
[1718749432611,2.2689,3482.3,3481.7,2.87212]
[1718749432816,3.56318564,3482.3,3481.7,2.87212]
[1718749435364,6.43486564,3482.3,3481.6,2.87222]
[1718749435571,6.43486564,3482.3,3481.7,2.87214]
[1718749435730,0.64348656,3482.2,3481.7,2.87214]
[1718749439269,2.2689,3482.3,3482.0,2.87185]
[1718749440345,2.2689,3482.3,3481.4,1.728]
[1718749440589,2.287,3482.1,3481.4,4.60039]
[1718749440790,2.287,3482.1,3481.6,2.87223]
[1718749441000,2.287,3482.1,3481.5,2.87232]
[1718749441169,2.802858,3482.1,3481.5,2.87232]
[1718749441355,5.674688,3482.1,3481.5,2.87232]
[1718749441558,2.87206,3481.9,3481.2,2.87251]
[1718749441890,2.287,3481.8,3481.2,5.74501]
[1718749442066,2.287,3481.8,3481.2,2.8725]
[1718749442259,5.15907,3481.8,3480.9,3.332866]
[1718749442488,3.1416838,3481.8,3481.1,2.87265]
[1718749442689,6.0137638,3481.8,3481.2,2.87257]
[1718749443068,6.0137638,3481.8,3481.1,2.87263]
[1718749443655,2.87216,3481.7,3481.1,2.87263]
[1718749444079,6.0137838,3481.8,3481.1,2.87263]
[1718749445691,6.0137838,3481.8,3481.2,2.87256]
[1718749445992,6.0137838,3481.8,3481.1,2.87263]
[1718749446202,6.0137838,3481.8,3480.8,2.87289]
[1718749446203,2.87242,3481.4,3480.8,2.87289]
[1718749446492,2.3342,3481.5,3480.8,2.87289]
[1718749446493,2.854862,3481.3,3480.8,2.87289]
[1718749446698,2.3342,3481.3,3480.8,2.87289]
[1718749446910,2.3342,3481.3,3481.0,2.87268]
[1718749448086,2.3342,3481.3,3480.9,3.71581]
[1718749448586,2.3342,3481.3,3481.0,2.87272]
[1718749449695,2.87257,3481.2,3480.4,2.87322]
[1718749449899,2.4167,3481.1,3480.6,0.843]
[1718749450216,5.28935,3481.1,3480.6,0.843]
[1718749450396,6.24929056,3481.1,3480.6,0.843]
[1718749451226,6.24929056,3481.1,3480.3,4.60129]
[1718749451531,2.4745,3480.6,3480.1,7.33]
[1718749451726,2.4745,3480.6,3480.1,11.04641]
[1718749451897,2.4745,3480.6,3480.1,10.20345]
[1718749452086,2.3325,3480.6,3480.2,0.843]
[1718749453416,2.3045,3480.6,3480.2,2.87337]
[1718749453592,2.3045,3480.6,3480.1,10.20346]
[1718749454007,2.3045,3480.6,3480.1,2.87346]
[1718749456320,4.58402407,3480.6,3480.0,2.87355]
[1718749457417,3.50864563,3480.6,3480.2,2.87339]
[1718749457633,2.3045,3480.6,3480.2,2.87339]
[1718749457981,2.3045,3480.6,3480.3,2.87331]
[1718749458185,2.3045,3480.6,3480.2,2.87339]
[1718749458186,2.3045,3480.6,3480.5,2.87315]
[1718749460021,2.3045,3480.6,3480.1,2.8734]
[1718749460203,0.35086456,3480.5,3480.1,2.8734]
[1718749460403,2.3045,3480.6,3480.1,2.8734]
[1718749460700,4.58683335,3480.5,3479.9,2.87358]
[1718749461022,3.70244563,3480.5,3480.0,2.87355]
[1718749461535,3.70244563,3480.5,3479.9,2.87362]
[1718749461744,3.70244563,3480.5,3480.0,2.87352]
[1718749462238,2.4983,3480.5,3480.0,2.87352]
[1718749462411,2.4983,3480.5,3479.7,2.87378]
[1718749462735,2.4983,3480.5,3479.9,2.87357]
[1718749463041,3.70244563,3480.5,3479.9,2.87357]
[1718749463343,2.4983,3480.5,3479.9,2.87357]
[1718749463839,2.4983,3480.5,3480.0,2.87354]
[1718749464037,2.4983,3480.5,3479.9,2.87362]
[1718749465021,2.4983,3480.5,3480.0,2.87356]
[1718749466526,2.4983,3480.5,3480.0,0.574728]
[1718749466723,2.31,3480.9,3480.5,2.87315]
[1718749466957,10.50200352,3481.7,3480.9,2.87281]
[1718749466958,3.51414563,3481.2,3480.9,2.87281]
[1718749467258,2.31,3481.2,3480.9,2.87281]
[1718749467463,2.31,3481.2,3480.9,5.74562]
[1718749468056,2.31,3481.2,3481.0,2.8727]
[1718749468621,2.31,3481.2,3480.5,4.89711]
[1718749468872,2.31,3481.2,3480.5,2.87308]
[1718749468873,5.18263,3481.2,3480.5,2.87308]
[1718749469038,2.31,3481.2,3480.6,2.87305]
[1718749469627,5.18259,3481.2,3480.4,2.87323]
[1718749469848,5.18259,3481.2,3480.5,2.87313]
[1718749470049,3.23592356,3481.2,3480.6,2.87305]
[1718749470371,2.31,3481.2,3480.9,2.87281]
[1718749470859,2.31,3481.2,3479.9,3.751]
[1718749471076,2.31,3481.2,3479.1,3.17400984]
[1718749471077,5.31662,3481.1,3480.4,2.87321]
[1718749471356,3.64804563,3481.1,3480.5,2.87314]
[1718749471741,2.4439,3481.1,3480.5,2.87314]
[1718749471940,2.4439,3481.1,3480.5,5.74628]
[1718749472141,2.4439,3481.1,3480.6,2.87304]
[1718749472469,2.4439,3481.1,3480.9,2.8728]
[1718749472674,2.4439,3481.1,3480.8,2.87289]
[1718749473753,2.4439,3481.1,3480.7,2.87296]
[1718749474960,2.4439,3481.1,3480.8,0.07344836]
[1718749475533,5.31662,3481.1,3480.8,0.07344836]
[1718749475721,6.4057627,3481.1,3480.8,0.07344836]
[1718749477974,7.60990833,3481.1,3480.8,0.07344836]
[1718749480360,3.64804563,3481.1,3480.8,0.07344836]
[1718749481277,2.08825599,3481.0,3480.8,0.07344836]
[1718749481478,3.29240162,3481.0,3480.8,0.07344836]
[1718749481653,1.20414563,3481.0,3480.8,0.07344836]
[1718749482372,3.29244513,3480.9,3480.8,0.07344836]
[1718749485160,2.0882995,3480.9,3480.8,0.07344836]
[1718749485388,3.28826034,3480.9,3480.8,0.07344836]
[1718749486490,2.0882995,3480.9,3480.8,0.07344836]
[1718749487157,3.58612188,3480.9,3480.8,0.07344836]
[1718749487362,2.0882995,3480.9,3480.8,0.07344836]
[1718749487681,3.58612188,3480.9,3480.8,0.07344836]
[1718749488053,6.45894188,3480.9,3480.8,0.07344836]
[1718749488450,3.58612188,3480.9,3480.8,0.07344836]
[1718749489477,2.0882995,3480.9,3480.8,0.07344836]
[1718749490002,3.58612188,3480.9,3480.8,0.07344836]
[1718749491613,3.58973767,3480.9,3480.8,0.07344836]
[1718749492203,3.28971017,3480.9,3480.8,0.91644836]
[1718749492400,2.0882995,3480.9,3480.8,0.91644836]
[1718749492979,3.28938576,3480.9,3480.8,0.91644836]
[1718749493292,3.58973767,3480.9,3480.8,0.07344836]
[1718749494601,4.1765564,3480.9,3480.8,0.07344836]
[1718749498316,5.67828964,3480.9,3480.8,0.07344836]
[1718749498676,4.1765564,3480.9,3480.8,0.07344836]
[1718749499007,4.17650116,3480.9,3480.8,0.07344836]
[1718749501175,4.17650116,3480.9,3480.8,10.41914836]
[1718749501176,3.29044897,3480.9,3480.8,10.41914836]
[1718749501376,1.20220471,3481.2,3481.0,2.87273]
[1718749501616,1.20220471,3481.2,3481.1,0.843]
[1718749501908,3.29007904,3481.3,3481.1,2.87265]
[1718749502229,2.08787433,3481.2,3481.1,2.87265]
[1718749502372,2.08787433,3481.2,3481.1,3.71565]
[1718749503722,2.08787433,3481.2,3481.1,6.5883]
[1718749504030,1.50257275,3481.5,3481.3,2.87241]
[1718749504031,1.20220471,3481.5,3481.3,2.87241]
[1718749504218,2.08778721,3481.4,3481.3,2.87241]
[1718749504414,2.08778721,3481.4,3481.3,3.71541]
[1718749505222,2.08778721,3481.4,3481.3,7.79055598]
[1718749505407,1.20220471,3481.6,3481.5,2.87232]
[1718749505607,3.28991279,3481.6,3481.5,3.71532]
[1718749506396,3.28991279,3481.6,3481.5,8.31464]
[1718749506627,1.20220471,3481.9,3481.6,2.87224]
[1718749506827,1.20220471,3481.9,3481.8,2.87207]
[1718749507002,3.28975138,3482.0,3481.8,2.87207]
[1718749507203,1.20220471,3482.0,3481.8,2.87207]
[1718749507601,1.20220471,3482.1,3481.8,2.87207]
[1718749507797,3.28970209,3482.0,3481.8,2.87207]
[1718749508023,2.08749738,3481.9,3481.8,2.87207]
[1718749508235,1.20220471,3482.0,3481.8,2.87207]
[1718749508413,1.20220471,3482.0,3481.7,3.71516]
[1718749509250,2.08755536,3481.9,3481.8,2.87207]
[1718749509400,1.20220471,3482.1,3481.8,0.831423]
[1718749509602,1.20220471,3482.3,3482.0,2.87184]
[1718749509917,2.08739857,3482.2,3482.1,0.843]
[1718749510417,1.20220471,3482.3,3482.1,0.843]
[1718749510618,3.55900471,3482.4,3482.1,0.843]
[1718749510955,3.28957075,3482.3,3482.1,0.843]
[1718749511150,1.20220471,3482.3,3482.1,0.843]
[1718749511309,2.3568,3482.4,3482.1,0.843]
[1718749511310,3.55900471,3482.4,3482.1,0.843]
[1718749512016,1.20220471,3482.4,3482.2,2.87172]
[1718749512364,2.3181,3482.7,3482.1,3.3118243]
[1718749512365,3.52030471,3482.7,3482.4,2.87158]
[1718749512524,2.08726884,3482.6,3482.4,2.87158]
[1718749513034,3.52030471,3482.7,3482.4,2.87158]
[1718749513631,3.52030471,3482.7,3482.3,3.71465]
[1718749513812,2.3181,3482.7,3482.3,3.71465]
[1718749514006,2.3181,3482.7,3482.4,2.87157]
[1718749516359,2.3181,3482.7,3482.3,3.71464]
[1718749516663,2.8715,3482.5,3481.8,5.430423]
[1718749516810,2.8715,3482.5,3482.0,0.843]
[1718749517221,2.87143,3482.6,3482.0,3.7149]
[1718749517656,5.18945,3482.7,3482.2,0.843]
[1718749517966,2.3181,3482.7,3482.2,0.843]
[1718749518125,2.3181,3482.7,3482.1,1.727]
[1718749518328,2.3181,3482.7,3482.2,4.30222423]
[1718749519027,2.3181,3482.7,3482.2,3.45922423]
[1718749519232,2.3181,3482.7,3482.3,2.87165]
[1718749519427,2.3181,3482.7,3482.4,3.71456]
[1718749519636,2.4759,3482.9,3482.4,2.57]
[1718749519953,2.4759,3482.9,3482.5,0.32761271]
[1718749520518,2.4759,3482.9,3482.5,3.19907271]
[1718749520871,3.71425,3482.8,3482.2,0.58749423]
[1718749521029,2.4963,3482.4,3481.9,2.87192]
[1718749521230,2.4963,3482.4,3482.0,0.843]
[1718749521537,2.2956,3482.7,3482.3,2.87163]
[1718749522216,2.2956,3482.7,3482.4,3.71456]
[1718749523015,2.2956,3482.7,3482.4,0.843]
[1718749523314,2.2956,3482.7,3482.3,2.8716]
[1718749523512,2.2956,3482.7,3482.5,0.843]
[1718749523830,5.16733,3482.3,3481.1,7.33]
[1718749524047,5.16733,3482.3,3481.9,0.843]
[1718749524048,2.2956,3482.3,3481.9,0.843]
[1718749524416,2.2956,3482.3,3481.4,4.59938]
[1718749524657,2.87191,3482.0,3481.7,0.843]
[1718749524816,2.87207,3481.8,3481.2,2.87255]
[1718749525017,2.2956,3481.9,3481.5,0.843]
[1718749525341,2.2956,3481.9,3480.8,0.07344836]
[1718749525342,2.87234,3481.5,3480.8,0.07344836]
[1718749525542,2.87234,3481.5,3480.8,3.9739812]
[1718749525920,2.8724,3481.4,3480.8,3.9739812]
[1718749526351,2.87224,3481.6,3480.8,5.7009812]
[1718749526559,2.4386,3481.3,3480.8,0.07344836]
[1718749526738,2.87259,3481.2,3480.8,0.07344836]
[1718749527072,2.87257,3481.2,3480.8,0.07344836]
[1718749528132,5.3111,3481.3,3480.8,0.07344836]
[1718749528671,2.4386,3481.3,3480.8,0.07344836]
[1718749528844,2.4386,3481.3,3480.8,2.94633836]
[1718749529422,5.31111,3481.3,3480.8,0.07344836]
[1718749530034,2.87273,3481.0,3480.8,0.07344836]
[1718749530239,2.87279,3481.0,3480.8,0.07344836]
[1718749530549,2.87282,3480.9,3480.8,0.07344836]
[1718749530747,2.87275,3481.0,3480.8,0.07344836]
[1718749531632,2.87282,3480.9,3480.8,0.07344836]
[1718749532640,5.74564,3480.9,3480.8,0.07344836]
[1718749533025,8.61846,3480.9,3480.8,0.07344836]
[1718749533570,5.74564,3480.9,3480.8,0.07344836]
[1718749534433,6.41551423,3480.9,3480.8,0.07344836]
[1718749538083,9.28833423,3480.9,3480.8,0.07344836]
[1718749540161,12.74664921,3480.9,3480.8,0.07344836]
[1718749541578,11.55043423,3480.9,3480.8,0.07344836]
[1718749554331,12.0477185,3480.9,3480.8,0.07344836]
[1718749554487,11.37784427,3480.9,3480.8,0.07344836]
[1718749560104,11.37785792,3480.9,3480.8,0.07344836]
[1718749562333,0.49729792,3480.9,3480.8,0.07344836]
[1718749562540,0.49729792,3481.1,3480.8,0.91644836]
[1718749562693,2.87265,3481.2,3481.0,0.843]
[1718749563087,2.87265,3481.1,3481.0,0.843]
[1718749563311,2.87265,3481.1,3480.8,0.07344836]
[1718749563498,2.87282,3480.9,3480.8,0.91644836]
[1718749563703,5.74564,3480.9,3480.8,0.07344836]
[1718749563887,8.22784,3480.9,3480.8,0.07344836]
[1718749564115,8.72513792,3480.9,3480.8,0.07344836]
[1718749564330,9.79341302,3480.9,3480.8,0.07344836]
[1718749564540,12.66623302,3480.9,3480.8,0.07344836]
[1718749564711,15.9509929,3480.9,3480.8,0.07344836]
[1718749565228,14.75477792,3480.9,3480.8,0.07344836]
[1718749566134,16.24948271,3480.9,3480.8,0.07344836]
[1718749566334,17.68651197,3480.9,3480.8,0.07344836]
[1718749566715,16.84351197,3480.9,3480.8,0.07344836]
[1718749567607,18.63715772,3480.9,3480.8,0.07344836]
[1718749568304,17.68651197,3480.9,3480.8,0.07344836]
[1718749570306,19.77909868,3480.9,3480.8,0.07344836]
[1718749571242,16.84351197,3480.9,3480.8,0.07344836]
[1718749571412,17.68651197,3480.9,3480.8,0.07344836]
[1718749575924,20.15838002,3480.9,3480.8,0.07344836]
[1718749576546,18.23651197,3480.9,3480.8,0.07344836]
[1718749576739,29.95818943,3480.9,3480.8,0.07344836]
[1718749576939,27.24230992,3480.9,3480.8,0.07344836]
[1718749577463,24.10933197,3480.9,3480.8,0.07344836]
[1718749578115,27.24230992,3480.9,3480.8,0.07344836]
[1718749579565,26.39930992,3480.9,3480.8,0.07344836]
[1718749579868,30.22845421,3480.9,3480.8,0.07344836]
[1718749580267,26.85833629,3480.9,3480.8,0.07344836]
[1718749580485,21.2365795,3480.9,3480.8,0.07344836]
[1718749582230,20.3935795,3480.9,3480.8,0.07344836]
[1718749582632,20.52655745,3480.9,3480.8,0.07344836]
[1718749582878,17.3935795,3480.9,3480.8,0.07344836]
[1718749583061,19.5002697,3480.9,3480.8,0.07344836]
[1718749583243,18.2365795,3480.9,3480.8,0.07344836]
[1718749583436,16.8435795,3480.9,3480.8,0.07344836]
[1718749583655,13.9707595,3480.9,3480.8,0.07344836]
[1718749583855,16.07747818,3480.9,3480.8,0.07344836]
[1718749584270,16.07752206,3480.9,3480.8,0.07344836]
[1718749584435,4.6746444,3480.9,3480.8,0.07344836]
[1718749584634,4.17727895,3480.9,3480.8,0.07344836]
[1718749584842,4.17727895,3480.9,3480.8,0.13800433]
[1718749586059,7.05009895,3480.9,3480.8,0.13800433]
[1718749586367,12.88718719,3480.9,3480.8,0.13800433]
[1718749586566,15.76000719,3480.9,3480.8,0.13800433]
[1718749587065,17.86676975,3480.9,3480.8,0.13800433]
[1718749587233,14.99394975,3480.9,3480.8,0.13800433]
[1718749587761,17.86676975,3480.9,3480.8,0.13800433]
[1718749589981,17.8669214,3480.9,3480.8,0.13800433]
[1718749590441,20.3275214,3480.9,3480.8,0.13800433]
[1718749590863,18.22075884,3480.9,3480.8,0.13800433]
[1718749591385,24.13219212,3480.9,3480.8,0.13800433]
[1718749591686,21.64357884,3480.9,3480.8,0.13800433]
[1718749592378,2.87377,3479.8,3479.1,2.87428]
[1718749592553,1.20344819,3479.3,3479.1,4.642304]
[1718749592754,2.08911795,3479.2,3479.1,4.642304]
[1718749592956,3.29256614,3479.2,3479.1,4.642304]
[1718749594442,3.29262419,3479.2,3479.1,4.642304]
[1718749595383,1.20344819,3479.3,3479.1,4.642304]
[1718749595550,1.50431024,3479.4,3479.2,0.843]
[1718749595761,3.29179131,3479.3,3479.2,0.843]
[1718749595945,2.08915728,3479.3,3479.0,2.87436]
[1718749596140,2.08915728,3479.3,3479.2,0.843]
[1718749596444,3.29158882,3479.3,3479.2,0.843]
[1718749596975,3.29158882,3479.3,3478.9,2.87446]
[1718749597168,1.20242279,3479.2,3478.9,2.87446]
[1718749597364,1.20242279,3479.2,3479.1,0.843]
[1718749597778,1.20242279,3479.2,3478.9,1.035067]
[1718749597995,1.20242279,3479.2,3479.1,0.843]
[1718749598789,1.20242279,3479.2,3478.9,3.909527]
[1718749598973,1.20242279,3479.3,3479.0,0.843]
[1718749599984,1.20242279,3479.3,3478.6,2.8747]
[1718749599985,1.20242279,3479.2,3478.6,2.8747]
[1718749600157,3.29172591,3479.2,3479.0,0.843]
[1718749600359,1.20242279,3479.2,3479.0,0.843]
[1718749600559,2.87414,3479.3,3479.0,0.843]
[1718749600560,1.20242279,3479.1,3479.0,0.843]
[1718749600756,1.20242279,3479.2,3479.0,0.843]
[1718749601368,1.20242279,3479.3,3479.0,3.71738]
[1718749601695,1.20242279,3479.4,3479.2,0.843]
[1718749602651,1.50447641,3479.6,3479.1,0.371738]
[1718749602652,1.20242279,3479.6,3479.1,2.87423]
[1718749602854,3.29148088,3479.5,3479.3,0.843]
[1718749603066,1.20242279,3479.5,3479.3,3.71713]
[1718749603392,1.20242279,3479.6,3479.3,0.843]
[1718749603600,1.20242279,3479.5,3479.3,0.843]
[1718749604577,1.20242279,3479.6,3479.3,0.843]
[1718749604779,1.50447641,3479.7,3479.3,0.843]
[1718749604780,1.20242279,3479.5,3479.3,0.843]
[1718749605807,1.20242279,3479.6,3479.3,0.843]
[1718749605973,1.20242279,3479.5,3479.4,0.843]